lending/lending_fUSD_20251106
["ID","MTS","AMOUNT","RATE_DAILY","PERIOD"]
[393264163,1762399843400,-151.0,0.00017478,2]
[393264165,1762399843409,-151.0,0.00017478,2]
[393264167,1762399843418,-169.921157,0.00017478,2]
[393264169,1762399843427,-151.0,0.00017478,2]
[393264171,1762399843436,-169.921157,0.00017478,2]
[393264173,1762399843445,-244.301156,0.00017478,2]
[393264175,1762399843454,-169.921157,0.00017478,2]
[393264177,1762399843463,-151.0,0.00017478,2]
[393264179,1762399843473,-151.0,0.00017478,2]
[393264181,1762399843482,-163.790292,0.00017478,2]
[393264182,1762399843491,-820.0,0.00017478,2]
[393264184,1762399843499,-1596.0,0.00017478,2]
[393264186,1762399843509,-812.0,0.00017478,2]
[393264188,1762399843519,-1273.0,0.00017478,2]
[393264190,1762399843528,-1188.0,0.00017478,2]
[393264192,1762399843541,-905.0,0.00017478,2]
[393264194,1762399843550,-2159.448,0.00017478,2]
[393264196,1762399843559,-574.0,0.00017478,2]
[393264198,1762399843570,-1315.0,0.00017478,2]
[393264200,1762399843579,-6334.05858065,0.00017481,2]
[393264202,1762399843588,-4863.32707044,0.00017481,2]
[393264204,1762399843600,-296.35811584,0.00017481,2]
[393264206,1762399843612,-1500.0,0.00017482,2]
[393264208,1762399843621,-1319.3618439,0.00017482,2]
[393264210,1762399843631,-1403.68386567,0.00017482,2]
[393264212,1762399843640,-1503.36973297,0.00017487,2]
[393264214,1762399843649,-1500.0,0.00017487,2]
[393264216,1762399843659,-1500.0,0.00017496,2]
[393264218,1762399843668,-900.0,0.000175,6]
[393264220,1762399843677,-400.0,0.000175,6]
[393264222,1762399843687,-150.0,0.00017535,2]
[393264224,1762399843697,-200.0,0.00017535,2]
[393264226,1762399843706,-1321.0,0.00017538,2]
[393264228,1762399843715,-1321.0,0.00017543,2]
[393264230,1762399843724,-663.6022386,0.0001755,2]
[393264232,1762399843733,-616.02,0.00017565,2]
[393264234,1762399843744,-477.03,0.00017565,2]
[393264236,1762399843753,-477.03,0.00017565,2]
[393264238,1762399843761,-202.6,0.00017565,2]
[393264240,1762399843770,-300.0,0.00017565,2]
[393264242,1762399843779,-150.0,0.00017565,2]
[393264244,1762399843788,-150.0,0.00017565,2]
[393264246,1762399843797,-150.0,0.00017565,2]
[393264248,1762399843806,-150.0,0.00017565,2]
[393264250,1762399843815,-150.0,0.00017565,2]
[393264252,1762399843824,-150.0,0.00017565,2]
[393264254,1762399843834,-150.0,0.00017565,2]
[393264256,1762399843843,-150.0,0.00017565,2]
[393264258,1762399843852,-151.0,0.00017577,2]
[393264260,1762399843861,-151.0,0.00017577,2]
[393264262,1762399843870,-151.0,0.00017577,2]
[393264264,1762399843879,-151.0,0.00017577,2]
[393264266,1762399843888,-537.715846,0.00017577,2]
[393264268,1762399843897,-537.715846,0.00017577,2]
[393264270,1762399843906,-151.0,0.00017577,2]
[393264272,1762399843915,-167.426808,0.00017577,2]
[393264274,1762399843924,-537.715846,0.00017577,2]
[393264276,1762399843933,-151.0,0.00017577,2]
[393264278,1762399843942,-537.715846,0.00017577,2]
[393264279,1762399843951,-151.0,0.00017577,2]
[393264281,1762399843961,-495.171074,0.00017577,2]
[393264283,1762399843970,-495.171074,0.00017577,2]
[393264285,1762399843980,-151.0,0.00017577,2]
[393264287,1762399843989,-495.171074,0.00017577,2]
[393264289,1762399843998,-276.880152,0.00017577,2]
[393264292,1762399844009,-175.620212,0.00017577,2]
[393264293,1762399844018,-495.171074,0.00017577,2]
[393264295,1762399844027,-276.880152,0.00017577,2]
[393264297,1762399844036,-276.880152,0.00017577,2]
[393264299,1762399844046,-276.880152,0.00017577,2]
[393264301,1762399844056,-160.108682,0.00017577,2]
[393264303,1762399844065,-151.0,0.00017577,2]
[393264305,1762399844074,-151.0,0.00017577,2]
[393264307,1762399844084,-162.64913491,0.00017589,2]
[393264309,1762399844094,-166.66,0.00017589,2]
[393264311,1762399844104,-500.0,0.00017589,2]
[393264313,1762399844113,-900.0,0.000176,6]
[393264315,1762399844123,-400.0,0.000176,6]
[393264317,1762399844132,-151.0,0.00017617,2]
[393264319,1762399844142,-151.0,0.00017617,2]
[393264321,1762399844151,-151.0,0.00017617,2]
[393264323,1762399844161,-151.0,0.00017617,2]
[393264325,1762399844170,-151.0,0.00017617,2]
[393264327,1762399844179,-151.0,0.00017617,2]
[393264330,1762399844189,-151.0,0.00017617,2]
[393264331,1762399844198,-151.0,0.00017617,2]
[393264333,1762399844207,-151.0,0.00017617,2]
[393264335,1762399844217,-151.0,0.00017617,2]
[393264337,1762399844226,-151.0,0.00017617,2]
[393264339,1762399844235,-1321.0,0.00017617,2]
[393264341,1762399844244,-698.44,0.00017629,2]
[393264343,1762399844254,-257.0064204,0.00017631,2]
[393264345,1762399844263,-1321.0,0.00017636,2]
[393264347,1762399844273,-150.098,0.00017639,2]
[393264349,1762399844282,-150.0,0.00017639,2]
[393264351,1762399844291,-150.113,0.00017639,2]
[393264353,1762399844300,-152.577,0.00017639,2]
[393264355,1762399844309,-188.67,0.00017639,2]
[393264357,1762399844318,-261.388,0.00017639,2]
[393264359,1762399844327,-188.853,0.00017639,2]
[393264361,1762399844335,-269.869,0.00017639,2]
[393264363,1762399844344,-162.078,0.00017639,2]
[393264365,1762399844353,-209.824,0.00017639,2]
[393264367,1762399844362,-266.384,0.00017639,2]
[393264369,1762399844371,-220.782,0.00017639,2]
[393264371,1762399844381,-1321.0,0.00017663,2]
[393264373,1762399844390,-163.0,0.00017671,2]
[393264375,1762399844399,-1321.0,0.00017678,2]
[393264377,1762399844408,-186.86755504,0.00017683,2]
[393264378,1762399844417,-6334.05858065,0.00017691,2]
[393264379,1762399844427,-4863.32707044,0.00017691,2]
[393264380,1762399844437,-296.35811584,0.00017691,2]
[393264381,1762399844447,-500.0,0.00017699,2]
[393264382,1762399844456,-500.0,0.00017699,2]
[393264384,1762399844465,-500.0,0.00017699,2]
[393264386,1762399844475,-500.0,0.00017699,2]
[393264388,1762399844484,-500.0,0.00017699,2]
[393264390,1762399844493,-500.0,0.00017699,2]
[393264392,1762399844502,-500.0,0.00017699,2]
[393264394,1762399844512,-500.0,0.00017699,2]
[393264396,1762399844522,-500.0,0.00017699,2]
[393264398,1762399844535,-500.0,0.00017699,2]
[393264400,1762399844545,-300.0,0.00017699,2]
[393264402,1762399844555,-666.0,0.00017699,2]
[393264404,1762399844564,-1084006.24821597,0.000177,2]
[393264407,1762399844585,-234517.07424721,0.000177,2]
[393264409,1762399844595,-151.0,0.000177,2]
[393264410,1762399844605,-151.0,0.000177,2]
[393264411,1762399844615,-151.0,0.000177,2]
[393264412,1762399844624,-151.0,0.000177,2]
[393264413,1762399844633,-167.167131,0.000177,2]
[393264414,1762399844642,-151.0,0.000177,2]
[393264415,1762399844651,-151.0,0.000177,2]
[393264416,1762399844660,-151.0,0.000177,2]
[393264418,1762399844668,-151.0,0.000177,2]
[393264419,1762399844677,-151.0,0.000177,2]
[393264420,1762399844686,-151.0,0.000177,2]
[393264421,1762399844706,-151.0,0.000177,2]
[393264422,1762399844715,-151.0,0.000177,2]
[393264423,1762399844725,-282.748482,0.000177,2]
[393264424,1762399844734,-151.0,0.000177,2]
[393264425,1762399844743,-151.0,0.000177,2]
[393264426,1762399844753,-151.0,0.000177,2]
[393264427,1762399844763,-151.0,0.000177,2]
[393264428,1762399844772,-151.0,0.000177,2]
[393264429,1762399844782,-151.0,0.000177,2]
[393264430,1762399844791,-175.011809,0.000177,2]
[393264431,1762399844800,-151.0,0.000177,2]
[393264432,1762399844809,-151.0,0.000177,2]
[393264433,1762399844819,-151.0,0.000177,2]
[393264434,1762399844828,-151.0,0.000177,2]
[393264435,1762399844837,-165.676348,0.000177,2]
[393264436,1762399844847,-537.715846,0.000177,2]
[393264437,1762399844863,-537.715846,0.000177,2]
[393264438,1762399844872,-151.0,0.000177,2]
[393264439,1762399844881,-537.715846,0.000177,2]
[393264440,1762399844891,-537.715846,0.000177,2]
[393264441,1762399844900,-495.171074,0.000177,2]
[393264442,1762399844910,-151.0,0.000177,2]
[393264443,1762399844919,-495.171074,0.000177,2]
[393264444,1762399844928,-151.0,0.000177,2]
[393264445,1762399844938,-495.171074,0.000177,2]
[393264446,1762399844948,-276.880152,0.000177,2]
[393264447,1762399844957,-495.171074,0.000177,2]
[393264448,1762399844966,-276.880152,0.000177,2]
[393264449,1762399844975,-276.880152,0.000177,2]
[393264450,1762399844985,-276.880152,0.000177,2]
[393264451,1762399844994,-151.0,0.000177,2]
[393264452,1762399845004,-186.406769,0.000177,2]
[393264453,1762399845014,-186.406769,0.000177,2]
[393264454,1762399845023,-186.406769,0.000177,2]
[393264455,1762399845032,-186.406769,0.000177,2]
[393264456,1762399845042,-151.0,0.000177,2]
[393264457,1762399845052,-162.748782,0.000177,2]
[393264458,1762399845065,-151.0,0.000177,2]
[393264459,1762399845075,-169.921157,0.000177,2]
[393264460,1762399845084,-151.0,0.000177,2]
[393264461,1762399845094,-151.0,0.000177,2]
[393264462,1762399845104,-169.921157,0.000177,2]
[393264463,1762399845113,-151.0,0.000177,2]
[393264464,1762399845123,-169.921157,0.000177,2]
[393264465,1762399845132,-900.0,0.000177,6]
[393264466,1762399845142,-169.921157,0.000177,2]
[393264467,1762399845151,-185.154177,0.000177,2]
[393264468,1762399845161,-152.705216,0.000177,2]
[393264469,1762399845170,-151.0,0.000177,2]
[393264470,1762399845179,-164.468218,0.000177,2]
[393264471,1762399845189,-151.0,0.000177,2]
[393264472,1762399845198,-400.0,0.000177,6]
[393264473,1762399845207,-151.0,0.000177,2]
[393264474,1762399845217,-151.0,0.000177,2]
[393264475,1762399845227,-151.0,0.000177,2]
[393264476,1762399845238,-151.0,0.000177,2]
[393264478,1762399845247,-151.0,0.000177,2]
[393264480,1762399845261,-1541.4348,0.000177,2]
[393264482,1762399845271,-151.0,0.000177,2]
[393264484,1762399845281,-1541.4348,0.000177,2]
[393264486,1762399845290,-311.487897,0.000177,2]
[393264488,1762399845301,-223.570654,0.000177,2]
[393264491,1762399845311,-151.0,0.000177,2]
[393264493,1762399845321,-1541.4348,0.000177,2]
[393264495,1762399845330,-311.487897,0.000177,2]
[393264497,1762399845341,-1541.4348,0.000177,2]
[393264498,1762399845350,-311.487897,0.000177,2]
[393264499,1762399845359,-199.350902,0.000177,2]
[393264500,1762399845370,-311.487897,0.000177,2]
[393264501,1762399845380,-199.350902,0.000177,2]
[393264502,1762399845390,-168.202191,0.000177,2]
[393264503,1762399845399,-199.350902,0.000177,2]
[393264504,1762399845408,-151.0,0.000177,2]
[393264505,1762399845417,-151.0,0.000177,2]
[393264506,1762399845427,-199.350902,0.000177,2]
[393264507,1762399845437,-151.0,0.000177,2]
[393264508,1762399845447,-151.0,0.000177,2]
[393264509,1762399845460,-853.16,0.0001774,2]
[393264510,1762399845470,-855.57478586,0.00017762,2]
[393264511,1762399845479,-730.97249654,0.00017764,2]
[393264512,1762399845495,-269.02750346,0.00017764,2]
[393264513,1762399845505,-45.09642454,0.00017774,2]
[393264514,1762399845516,-954.90357546,0.00017774,2]
[393264515,1762399845526,-1000.0,0.00017775,2]
[393264516,1762399845539,-467.43002339,0.00017782,2]
[393264517,1762399845549,-1105.05672931,0.00017798,2]
[393264518,1762399845560,-215.94327069,0.00017798,2]
[393264519,1762399845570,-532.06905087,0.00017799,2]
[393264520,1762399845580,-152.35662211,0.00017799,2]
[393264521,1762399845608,-151.0,0.000173,2]
[393264522,1762399845618,-1000.0,0.00017775,2]
[393264523,1762399845627,-347.64337789,0.00017799,2]
[393264524,1762399845637,-300.0,0.00017799,2]
[393264525,1762399845646,-670.73641906,0.00017799,2]
[393264526,1762399845659,-10020.61594573,0.000178,2]
[393264527,1762399845671,-1615.0098195,0.000178,2]
[393264528,1762399845686,-1777.54691346,0.000178,2]
[393264529,1762399845702,-1897.74363316,0.000178,2]
[393264530,1762399846161,-20.3209834,0.0001542,2]
[393264531,1762399846572,-392.3591166,0.0001542,2]
[393264532,1762399846581,-35.78556808,0.00016438,2]
[393264533,1762399846630,-133.22443192,0.00016438,2]
[393264534,1762399846639,-6092.92814164,0.00017178,2]
[393264537,1762399858536,-227.77829912,0.00014999,2]
[393264538,1762399861252,200.0,0.00038586,30]
[393264539,1762399874138,-272.22170088,0.00014999,2]
[393264540,1762399874167,-223.39883072,0.00014999,2]
[393264541,1762399875613,-165.60028277,0.00014999,2]
[393264543,1762400002057,500.0,0.0002684,120]
[393264546,1762400162112,200.0,0.00038603,30]
[393264547,1762400189894,3324.353563,0.00038603,120]
[393264548,1762400258601,222.59,0.0001528,2]
[393264549,1762400276412,1000.0,0.00015252,2]
[393264550,1762400307898,5802.67,0.00015222,2]
[393264551,1762400361193,1000.0,0.00038582,30]
[393264552,1762400361745,1000.0,0.00038582,30]
[393264553,1762400362293,1000.0,0.00038582,30]
[393264554,1762400362922,1000.0,0.00038582,30]
[393264555,1762400363485,1000.0,0.00038582,30]
[393264556,1762400364158,1000.0,0.00038582,30]
[393264557,1762400364949,1000.0,0.00038582,30]
[393264558,1762400365900,1000.0,0.00038582,30]
[393264559,1762400366451,1000.0,0.00038582,30]
[393264560,1762400367031,1000.0,0.00038582,30]
[393264561,1762400367607,1000.0,0.00038582,30]
[393264562,1762400368213,1000.0,0.00038582,30]
[393264563,1762400368749,1000.0,0.00038582,30]
[393264564,1762400369296,1000.0,0.00038582,30]
[393264565,1762400369855,1000.0,0.00038582,30]
[393264566,1762400370399,1000.0,0.00038582,30]
[393264567,1762400370929,1000.0,0.00038582,30]
[393264568,1762400371491,1000.0,0.00038582,30]
[393264569,1762400372069,1000.0,0.00038582,30]
[393264570,1762400372641,1000.0,0.00038582,30]
[393264571,1762400373191,1000.0,0.00038582,30]
[393264572,1762400373747,1000.0,0.00038582,30]
[393264573,1762400374292,1000.0,0.00038582,30]
[393264574,1762400375393,1000.0,0.00038582,30]
[393264575,1762400375842,400.50540542,0.00038582,30]
[393264576,1762400381343,2636.65,0.00015263,2]
[393264577,1762400386476,338.1,0.00015263,2]
[393264578,1762400386500,2412.9,0.00015263,2]
[393264579,1762400403630,790.76,0.00013699,2]
[393264581,1762400410537,150.0,0.00015189,2]
[393264582,1762400461271,200.0,0.00038582,30]
[393264583,1762400463739,175.74,0.00012176,2]
[393264585,1762400656599,5107.87,0.00015136,2]
[393264586,1762400667014,150.36612248,0.00038582,30]
[393264587,1762400680503,17037.72017,0.00038582,120]
[393264588,1762400738944,585.0,0.00015183,2]
[393264589,1762400761099,200.0,0.00038582,30]
[393264590,1762400847114,9415.01,0.00015115,2]
[393264591,1762400847136,6630.45,0.00015115,2]
[393264592,1762400899402,4965019.53648261,0.00030137,120]
[393264595,1762401031529,-195.0,0.00015544,2]
[393264596,1762401031543,-300.0,0.00015544,2]
[393264597,1762401031552,-2554.74079995,0.00015544,2]
[393264598,1762401031562,-250.0,0.00015545,2]
[393264599,1762401031572,-294.6298134,0.00015545,2]
[393264600,1762401031581,-195.0,0.00015545,2]
[393264601,1762401031591,-160.0,0.00015545,2]
[393264602,1762401031600,-250.0,0.00015545,2]
[393264603,1762401031610,-1200.0,0.00015897,2]
[393264604,1762401031619,-302.7666,0.00015898,2]
[393264605,1762401031628,-300.0,0.00015915,2]
[393264606,1762401031638,-1200.0,0.00015915,2]
[393264607,1762401031646,-1078.66907314,0.00015916,2]
[393264614,1762401037441,-3832.77334353,0.00015916,2]
[393264615,1762401037451,-7966.8004212,0.00015918,2]
[393264616,1762401037460,-244.43129253,0.00015918,2]
[393264617,1762401037470,-339.76168497,0.00015973,2]
[393264618,1762401037479,-222.70644592,0.00015973,2]
[393264619,1762401037489,-500.0,0.00015973,2]
[393264620,1762401037498,-500.0,0.00015994,2]
[393264621,1762401037507,-500.0,0.00015994,2]
[393264622,1762401037517,-500.0,0.00015994,2]
[393264623,1762401037526,-500.0,0.00015994,2]
[393264624,1762401037536,-500.0,0.00015994,2]
[393264625,1762401037545,-500.0,0.00015994,2]
[393264626,1762401037555,-500.0,0.00015994,2]
[393264627,1762401037564,-500.0,0.00015994,2]
[393264628,1762401037573,-500.0,0.00015994,2]
[393264629,1762401037583,-161.45860369,0.00015994,2]
[393264630,1762401037592,-500.0,0.00015994,2]
[393264631,1762401037602,-500.0,0.00015994,2]
[393264632,1762401037611,-500.0,0.00015994,2]
[393264633,1762401037620,-500.0,0.00015994,2]
[393264634,1762401037630,-500.0,0.00015994,2]
[393264635,1762401037639,-500.0,0.00015994,2]
[393264636,1762401037648,-500.0,0.00015994,2]
[393264638,1762401037657,-500.0,0.00015994,2]
[393264640,1762401037667,-500.0,0.00015994,2]
[393264642,1762401037677,-500.0,0.00015994,2]
[393264644,1762401037687,-500.0,0.00015994,2]
[393264646,1762401037697,-300.0,0.00015995,2]
[393264648,1762401037707,-176.49151582,0.00015997,2]
[393264650,1762401037716,-336.5838146,0.00015997,2]
[393264652,1762401037726,-150.0,0.00015997,2]
[393264654,1762401037735,-227096.96571217,0.00015998,2]
[393264683,1762401039684,-888.00499985,0.00015998,2]
[393264684,1762401039739,-3702.49702434,0.00015998,2]
[393264687,1762401042585,-870.67675167,0.00015998,2]
[393264695,1762401045691,-7742.29460067,0.00015998,2]
[393264984,1762401060706,200.0,0.00038582,30]
[393264985,1762401086736,500.0,0.00038582,120]
[393264986,1762401087344,500.0,0.00038582,120]
[393264987,1762401087971,500.0,0.00038582,120]
[393264988,1762401088607,500.0,0.00038582,120]
[393264989,1762401089813,500.0,0.00038582,120]
[393264990,1762401090457,500.0,0.00038582,120]
[393264991,1762401091068,500.0,0.00038582,120]
[393264992,1762401092003,500.0,0.00038582,120]
[393264993,1762401092641,500.0,0.00038582,120]
[393264994,1762401093267,500.0,0.00038582,120]
[393264995,1762401093920,500.0,0.00038582,120]
[393264996,1762401094594,500.0,0.00038582,120]
[393264997,1762401095445,500.0,0.00038582,120]
[393264998,1762401095932,500.0,0.00038582,120]
[393264999,1762401096553,500.0,0.00038582,120]
[393265000,1762401097179,500.0,0.00038582,120]
[393265001,1762401097816,500.0,0.00038582,120]
[393265002,1762401098438,500.0,0.00038582,120]
[393265003,1762401099062,500.0,0.00038582,120]
[393265004,1762401099693,500.0,0.00038582,120]
[393265005,1762401125983,500.0,0.00038565,120]
[393265006,1762401126628,500.0,0.00038565,120]
[393265007,1762401127419,500.0,0.00038565,120]
[393265008,1762401128033,500.0,0.00038565,120]
[393265009,1762401128666,500.0,0.00038565,120]
[393265010,1762401129332,500.0,0.00038565,120]
[393265011,1762401129946,500.0,0.00038565,120]
[393265012,1762401130573,500.0,0.00038565,120]
[393265013,1762401131225,500.0,0.00038565,120]
[393265014,1762401131939,500.0,0.00038565,120]
[393265015,1762401132549,500.0,0.00038565,120]
[393265016,1762401133147,500.0,0.00038565,120]
[393265017,1762401133743,500.0,0.00038565,120]
[393265018,1762401134368,500.0,0.00038565,120]
[393265019,1762401313176,200.0,0.00015115,2]
[393265020,1762401351335,500.0,0.00038565,30]
[393265021,1762401360585,500.0,0.00038565,120]
[393265022,1762401360924,500.0,0.00038565,120]
[393265023,1762401361090,500.0,0.00038565,120]
[393265024,1762401361321,500.0,0.00038565,120]
[393265025,1762401361391,200.0,0.00038565,30]
[393265026,1762401361569,500.0,0.00038565,120]
[393265027,1762401361828,500.0,0.00038565,120]
[393265028,1762401362256,500.0,0.00038565,120]
[393265029,1762401362404,500.0,0.00038565,120]
[393265030,1762401362660,500.0,0.00038565,120]
[393265031,1762401362927,323.28428793,0.00038565,120]
[393265033,1762401455378,250.0,0.00015183,2]
[393265034,1762401562387,1000.0,0.00038565,30]
[393265035,1762401638471,2000.0,0.00038564,120]
[393265036,1762401639105,2000.0,0.00038564,120]
[393265037,1762401640252,2000.0,0.00038564,120]
[393265038,1762401640995,2000.0,0.00038564,120]
[393265039,1762401642050,2000.0,0.00038564,120]
[393265040,1762401642676,2000.0,0.00038564,120]
[393265041,1762401643309,2000.0,0.00038564,120]
[393265042,1762401643947,2000.0,0.00038564,120]
[393265043,1762401644593,2000.0,0.00038564,120]
[393265044,1762401645260,2000.0,0.00038564,120]
[393265045,1762401645870,2000.0,0.00038564,120]
[393265046,1762401646478,2000.0,0.00038564,120]
[393265047,1762401647960,2000.0,0.00038564,120]
[393265048,1762401648709,2000.0,0.00038564,120]
[393265049,1762401649340,2000.0,0.00038564,120]
[393265050,1762401650498,2000.0,0.00038564,120]
[393265051,1762401651381,2000.0,0.00038564,120]
[393265052,1762401652067,2000.0,0.00038564,120]
[393265053,1762401652678,2000.0,0.00038564,120]
[393265054,1762401653349,2000.0,0.00038564,120]
[393265055,1762401661172,200.0,0.00038564,30]
[393265056,1762401672402,2000.0,0.00038564,120]
[393265057,1762401673054,2000.0,0.00038564,120]
[393265058,1762401674103,2000.0,0.00038564,120]
[393265059,1762401674722,2000.0,0.00038564,120]
[393265060,1762401675335,2000.0,0.00038564,120]
[393265061,1762401675938,2000.0,0.00038564,120]
[393265062,1762401676564,2000.0,0.00038564,120]
[393265063,1762401677174,2000.0,0.00038564,120]
[393265064,1762401678332,2000.0,0.00038564,120]
[393265065,1762401679153,2000.0,0.00038564,120]
[393265066,1762401679567,2000.0,0.00038564,120]
[393265067,1762401680218,2000.0,0.00038564,120]
[393265068,1762401680842,2000.0,0.00038564,120]
[393265069,1762401706566,292.30904031,0.00038564,120]
[393265070,1762401807413,374.77507065,0.00038574,120]
[393265071,1762401837016,151.58078988,0.00038574,120]
[393265072,1762401879014,166.66,0.00014252,2]
[393265073,1762401879226,166.66,0.00014552,2]
[393265074,1762401879447,166.66,0.00014852,2]
[393265075,1762401879656,166.66,0.00015152,2]
[393265076,1762401899246,878.6,8.084e-05,2]
[393265077,1762401899442,878.6,8.493e-05,2]
[393265078,1762401899649,878.6,8.902e-05,2]
[393265079,1762401900065,878.6,9.311e-05,2]
[393265080,1762401900268,878.6,9.72e-05,2]
[393265081,1762401900682,878.6,0.00010128,2]
[393265082,1762401900967,878.6,0.00010537,2]
[393265083,1762401901165,878.6,0.00010946,2]
[393265084,1762401901359,878.6,0.00011355,2]
[393265085,1762401901572,878.6,0.00011763,2]
[393265086,1762401901786,878.6,0.00012172,2]
[393265087,1762401901988,335.41,0.00012581,2]
[393265088,1762401902010,543.19,0.00012581,2]
[393265089,1762401902192,878.6,0.0001299,2]
[393265090,1762401902389,878.6,0.00013399,2]
[393265091,1762401902583,878.6,0.00013807,2]
[393265092,1762401902791,878.6,0.00014216,2]
[393265093,1762401902997,878.6,0.00014625,2]
[393265094,1762401903248,878.6,0.00015034,2]
[393265096,1762401959858,151.0,0.00015183,2]
[393265097,1762401960282,200.0,0.00038574,30]
[393265098,1762401960333,198.54973038,0.00015183,2]
[393265099,1762402063765,760.69,0.00014903,2]
[393265111,1762402231662,-878.6,0.00015443,2]
[393265112,1762402231671,-931.52849247,0.00015445,2]
[393265113,1762402231681,-250.0,0.00015447,2]
[393265114,1762402231690,-166.66,0.00015452,2]
[393265115,1762402231700,-150.0,0.00015472,2]
[393265116,1762402231710,-250.0,0.00015476,2]
[393265117,1762402231719,-166.67,0.00015569,2]
[393265118,1762402231729,-221.80400124,0.00015712,2]
[393265119,1762402231738,-166.66,0.00015752,2]
[393265120,1762402231747,-300.0,0.00015796,2]
[393265121,1762402231757,-300.0,0.00015797,2]
[393265122,1762402231767,-1200.0,0.00015797,2]
[393265123,1762402231777,-1000.0,0.00015798,2]
[393265124,1762402231786,-2500.0,0.00015798,2]
[393265125,1762402231796,-8352.45883485,0.000158,2]
[393265126,1762402231806,-174.28960002,0.000158,2]
[393265127,1762402231817,-434.0,0.00015808,2]
[393265128,1762402231827,-893.73840764,0.00015828,2]
[393265129,1762402231839,-878.6,0.00015851,2]
[393265130,1762402231848,-500.0,0.00015852,2]
[393265131,1762402231858,-300.0,0.00015881,2]
[393265132,1762402231867,-500.0,0.00015882,2]
[393265133,1762402231876,-500.0,0.00015882,2]
[393265134,1762402231886,-500.0,0.00015882,2]
[393265135,1762402231896,-500.0,0.00015882,2]
[393265136,1762402231906,-500.0,0.00015882,2]
[393265137,1762402231915,-500.0,0.00015882,2]
[393265138,1762402231925,-500.0,0.00015882,2]
[393265140,1762402231935,-445.43697635,0.00015882,2]
[393265142,1762402231944,-500.0,0.00015882,2]
[393265144,1762402231953,-500.0,0.00015882,2]
[393265146,1762402231962,-500.0,0.00015882,2]
[393265147,1762402231971,-500.0,0.00015882,2]
[393265148,1762402231980,-500.0,0.00015882,2]
[393265149,1762402231990,-500.0,0.00015882,2]
[393265150,1762402231999,-500.0,0.00015882,2]
[393265151,1762402232008,-500.0,0.00015882,2]
[393265152,1762402232018,-500.0,0.00015882,2]
[393265153,1762402232030,-500.0,0.00015882,2]
[393265154,1762402232039,-5000.0,0.00015885,2]
[393265155,1762402232049,-752.75,0.00015888,3]
[393265156,1762402232058,-408.29310023,0.00015897,2]
[393265157,1762402232067,-500.0,0.00015897,2]
[393265158,1762402232076,-500.0,0.00015897,2]
[393265159,1762402232086,-504.86891468,0.00015897,2]
[393265160,1762402232095,-500.0,0.00015897,2]